fUSD/lending_fUSD_20250105
["ID","MTS","AMOUNT","RATE_DAILY","PERIOD"]
[347711150,1736077832637,-23900.0,8.036e-05,2]
[347711151,1736077832656,-150.99,8.036e-05,2]
[347711152,1736077832667,-506.19,8.099e-05,2]
[347711153,1736077832676,-1671.45,8.119e-05,2]
[347711154,1736077832686,-378.2487909,8.218e-05,2]
[347711155,1736077832695,-2084.35,8.218e-05,2]
[347711156,1736077832705,-2361.91,8.219e-05,2]
[347711157,1736077832714,-1674.92,8.219e-05,2]
[347711158,1736077832724,-500.0,8.219e-05,2]
[347711159,1736077832733,-1621.98,8.219e-05,2]
[347711160,1736077832745,-500.0,8.219e-05,2]
[347711161,1736077832754,-500.0,8.219e-05,2]
[347711163,1736077832764,-500.0,8.219e-05,2]
[347711165,1736077832773,-500.0,8.219e-05,2]
[347711168,1736077832783,-500.0,8.219e-05,2]
[347711170,1736077832792,-500.0,8.219e-05,2]
[347711172,1736077832802,-500.0,8.219e-05,2]
[347711173,1736077832811,-500.0,8.219e-05,2]
[347711176,1736077832821,-150.80821289,8.219e-05,2]
[347711178,1736077832831,-500.0,8.219e-05,2]
[347711180,1736077832840,-500.0,8.219e-05,2]
[347711182,1736077832849,-500.0,8.219e-05,2]
[347711184,1736077832859,-500.0,8.219e-05,2]
[347711186,1736077832868,-500.0,8.219e-05,2]
[347711188,1736077832878,-500.0,8.219e-05,2]
[347711190,1736077832887,-3386.48,8.219e-05,2]
[347711192,1736077832898,-500.0,8.219e-05,2]
[347711194,1736077832908,-500.0,8.219e-05,2]
[347711195,1736077832919,-500.0,8.219e-05,2]
[347711197,1736077832929,-500.0,8.219e-05,2]
[347711199,1736077832939,-500.0,8.219e-05,2]
[347711201,1736077832949,-500.0,8.219e-05,2]
[347711203,1736077832958,-500.0,8.219e-05,2]
[347711205,1736077832968,-500.0,8.219e-05,2]
[347711206,1736077832978,-500.0,8.219e-05,2]
[347711207,1736077832988,-500.0,8.219e-05,2]
[347711208,1736077832998,-500.0,8.219e-05,2]
[347711209,1736077833007,-500.0,8.219e-05,2]
[347711210,1736077833017,-503.47,8.219e-05,2]
[347711211,1736077833027,-500.0,8.219e-05,2]
[347711212,1736077833037,-500.0,8.219e-05,2]
[347711213,1736077833047,-500.0,8.219e-05,2]
[347711214,1736077833057,-500.0,8.219e-05,2]
[347711215,1736077833067,-500.0,8.219e-05,2]
[347711216,1736077833078,-500.0,8.219e-05,2]
[347711217,1736077833088,-500.0,8.219e-05,2]
[347711218,1736077833098,-4493.65,8.219e-05,2]
[347711219,1736077833108,-500.0,8.219e-05,2]
[347711220,1736077833118,-500.0,8.219e-05,2]
[347711221,1736077833133,-500.0,8.219e-05,2]
[347711222,1736077833143,-500.0,8.219e-05,2]
[347711223,1736077833154,-500.0,8.219e-05,2]
[347711224,1736077833165,-500.0,8.219e-05,2]
[347711225,1736077833176,-500.0,8.219e-05,2]
[347711226,1736077833186,-500.0,8.219e-05,2]
[347711227,1736077833198,-500.0,8.219e-05,2]
[347711228,1736077833208,-500.0,8.219e-05,2]
[347711229,1736077833218,-655.26,8.219e-05,2]
[347711230,1736077833228,-500.0,8.219e-05,2]
[347711231,1736077833239,-505.26,8.219e-05,2]
[347711232,1736077833249,-500.0,8.219e-05,2]
[347711233,1736077833259,-500.0,8.219e-05,2]
[347711234,1736077833269,-500.0,8.219e-05,2]
[347711235,1736077833279,-500.0,8.219e-05,2]
[347711236,1736077833289,-500.0,8.219e-05,2]
[347711237,1736077833300,-3455.18,8.219e-05,2]
[347711238,1736077833310,-500.0,8.219e-05,2]
[347711239,1736077833320,-500.0,8.219e-05,2]
[347711240,1736077833330,-291.12714497,8.219e-05,2]
[347711241,1736077833340,-554.56572569,8.219e-05,2]
[347711242,1736077833350,-500.0,8.219e-05,2]
[347711243,1736077833359,-500.0,8.219e-05,2]
[347711244,1736077833370,-500.0,8.219e-05,2]
[347711245,1736077833384,-500.0,8.219e-05,2]
[347711246,1736077833394,-534.6,8.219e-05,2]
[347711247,1736077833405,-500.0,8.219e-05,2]
[347711248,1736077833416,-500.0,8.219e-05,2]
[347711249,1736077833426,-500.0,8.219e-05,2]
[347711250,1736077833436,-421.46735083,8.219e-05,2]
[347711251,1736077833455,-78.53264917,8.219e-05,2]
[347711252,1736077833466,-500.0,8.219e-05,2]
[347711253,1736077833476,-500.0,8.219e-05,2]
[347711254,1736077833486,-500.0,8.219e-05,2]
[347711255,1736077833500,-500.0,8.219e-05,2]
[347711256,1736077833510,-500.0,8.219e-05,2]
[347711257,1736077833520,-649.2,8.219e-05,2]
[347711258,1736077833531,-500.0,8.219e-05,2]
[347711259,1736077833541,-500.0,8.219e-05,2]
[347711260,1736077833551,-500.0,8.219e-05,2]
[347711261,1736077833561,-556.98,8.219e-05,2]
[347711262,1736077833572,-500.0,8.219e-05,2]
[347711263,1736077833588,-500.0,8.219e-05,2]
[347711264,1736077833599,-500.0,8.219e-05,2]
[347711265,1736077833610,-500.0,8.219e-05,2]
[347711266,1736077833621,-500.0,8.219e-05,2]
[347711267,1736077833631,-500.0,8.219e-05,2]
[347711268,1736077833641,-500.0,8.219e-05,2]
[347711269,1736077833651,-500.0,8.219e-05,2]
[347711270,1736077833662,-500.0,8.219e-05,2]
[347711271,1736077833672,-500.0,8.219e-05,2]
[347711272,1736077833682,-500.0,8.219e-05,2]
[347711273,1736077833693,-500.0,8.219e-05,2]
[347711274,1736077833703,-500.0,8.219e-05,2]
[347711275,1736077833714,-500.0,8.219e-05,2]
[347711276,1736077833724,-503.65,8.219e-05,2]
[347711277,1736077833735,-500.0,8.219e-05,2]
[347711278,1736077833746,-500.0,8.219e-05,2]
[347711279,1736077833756,-500.0,8.219e-05,2]
[347711280,1736077833767,-345.88867811,8.219e-05,2]
[347711281,1736077833778,-500.0,8.219e-05,2]
[347711282,1736077833789,-500.0,8.219e-05,2]
[347711283,1736077833800,-500.0,8.219e-05,2]
[347711284,1736077833811,-500.0,8.219e-05,2]
[347711285,1736077833822,-500.0,8.219e-05,2]
[347711286,1736077833832,-500.0,8.219e-05,2]
[347711287,1736077833843,-500.0,8.219e-05,2]
[347711288,1736077833853,-500.0,8.219e-05,2]
[347711289,1736077833864,-500.0,8.219e-05,2]
[347711290,1736077833874,-308.81021444,8.219e-05,2]
[347711291,1736077833885,-500.0,8.219e-05,2]
[347711292,1736077833895,-500.0,8.219e-05,2]
[347711293,1736077833906,-536.38,8.219e-05,2]
[347711294,1736077833916,-500.0,8.219e-05,2]
[347711295,1736077833927,-500.0,8.219e-05,2]
[347711296,1736077833937,-500.0,8.219e-05,2]
[347711297,1736077833947,-2093.91,8.219e-05,2]
[347711298,1736077833957,-500.0,8.219e-05,2]
[347711299,1736077833966,-500.0,8.219e-05,2]
[347711300,1736077833976,-500.0,8.219e-05,2]
[347711301,1736077833986,-500.0,8.219e-05,2]
[347711302,1736077833996,-500.0,8.219e-05,2]
[347711303,1736077834006,-500.0,8.219e-05,2]
[347711304,1736077834016,-500.0,8.219e-05,2]
[347711305,1736077834025,-598.5,8.219e-05,2]
[347711306,1736077834035,-500.0,8.219e-05,2]
[347711307,1736077834044,-500.0,8.219e-05,2]
[347711308,1736077834054,-500.0,8.219e-05,2]
[347711309,1736077834063,-535.39,8.219e-05,2]
[347711310,1736077834073,-500.0,8.219e-05,2]
[347711311,1736077834083,-500.0,8.219e-05,2]
[347711312,1736077834093,-500.0,8.219e-05,2]
[347711313,1736077834102,-500.0,8.219e-05,2]
[347711314,1736077834112,-500.0,8.219e-05,2]
[347711315,1736077834122,-500.0,8.219e-05,2]
[347711316,1736077834131,-500.0,8.219e-05,2]
[347711317,1736077834141,-567.07,8.219e-05,2]
[347711318,1736077834154,-500.0,8.219e-05,2]
[347711319,1736077834164,-500.0,8.219e-05,2]
[347711320,1736077834174,-500.0,8.219e-05,2]
[347711321,1736077834190,-500.0,8.219e-05,2]
[347711322,1736077834200,-500.0,8.219e-05,2]
[347711323,1736077834210,-4909.36,8.219e-05,2]
[347711324,1736077834220,-500.0,8.219e-05,2]
[347711325,1736077834230,-295.12110374,8.219e-05,2]
[347711326,1736077834240,-500.0,8.219e-05,2]
[347711327,1736077834250,-500.0,8.219e-05,2]
[347711328,1736077834260,-503.54517619,8.219e-05,2]
[347711329,1736077834269,-500.0,8.219e-05,2]
[347711330,1736077834279,-500.0,8.219e-05,2]
[347711331,1736077834290,-500.0,8.219e-05,2]
[347711332,1736077834300,-512.48,8.219e-05,2]
[347711333,1736077834310,-500.0,8.219e-05,2]
[347711334,1736077834319,-500.0,8.219e-05,2]
[347711335,1736077834329,-500.0,8.219e-05,2]
[347711336,1736077834338,-500.0,8.219e-05,2]
[347711337,1736077834348,-500.0,8.219e-05,2]
[347711338,1736077834358,-500.0,8.219e-05,2]
[347711339,1736077834368,-500.0,8.219e-05,2]
[347711340,1736077834379,-500.0,8.219e-05,2]
[347711341,1736077834389,-500.0,8.219e-05,2]
[347711342,1736077834398,-500.0,8.219e-05,2]
[347711343,1736077834409,-500.0,8.219e-05,2]
[347711344,1736077834419,-500.0,8.219e-05,2]
[347711345,1736077834429,-500.0,8.219e-05,2]
[347711346,1736077834438,-500.0,8.219e-05,2]
[347711347,1736077834448,-500.0,8.219e-05,2]
[347711348,1736077834459,-500.0,8.219e-05,2]
[347711349,1736077834469,-500.0,8.219e-05,2]
[347711350,1736077834478,-500.0,8.219e-05,2]
[347711351,1736077834488,-500.0,8.219e-05,2]
[347711352,1736077834497,-500.0,8.219e-05,2]
[347711353,1736077834507,-500.0,8.219e-05,2]
[347711354,1736077834516,-768.45,8.219e-05,2]
[347711355,1736077834526,-500.0,8.219e-05,2]
[347711356,1736077834536,-500.0,8.219e-05,2]
[347711357,1736077834546,-500.0,8.219e-05,2]
[347711358,1736077834556,-500.0,8.219e-05,2]
[347711359,1736077834566,-500.0,8.219e-05,2]
[347711360,1736077834575,-500.0,8.219e-05,2]
[347711361,1736077834584,-501.86,8.219e-05,2]
[347711362,1736077834594,-500.0,8.219e-05,2]
[347711363,1736077834603,-500.0,8.219e-05,2]
[347711364,1736077834612,-500.0,8.219e-05,2]
[347711365,1736077834623,-660.06,8.219e-05,2]
[347711366,1736077834633,-500.0,8.219e-05,2]
[347711367,1736077834643,-500.0,8.219e-05,2]
[347711368,1736077834653,-500.0,8.219e-05,2]
[347711369,1736077834664,-500.0,8.219e-05,2]
[347711370,1736077834674,-500.0,8.219e-05,2]
[347711371,1736077834683,-500.0,8.219e-05,2]
[347711372,1736077834695,-500.0,8.219e-05,2]
[347711373,1736077834705,-500.0,8.219e-05,2]
[347711374,1736077834714,-500.0,8.219e-05,2]
[347711375,1736077834724,-1439.68,8.219e-05,2]
[347711376,1736077834734,-500.0,8.219e-05,2]
[347711377,1736077834743,-500.0,8.219e-05,2]
[347711378,1736077834752,-597.85,8.219e-05,2]
[347711379,1736077834763,-500.0,8.219e-05,2]
[347711380,1736077834772,-500.0,8.219e-05,2]
[347711381,1736077834783,-542.79,8.219e-05,2]
[347711382,1736077834792,-500.0,8.219e-05,2]
[347711383,1736077834802,-500.0,8.219e-05,2]
[347711384,1736077834812,-500.0,8.219e-05,2]
[347711385,1736077834826,-500.0,8.219e-05,2]
[347711386,1736077834836,-500.0,8.219e-05,2]
[347711387,1736077834845,-500.0,8.219e-05,2]
[347711388,1736077834855,-1447.38,8.219e-05,2]
[347711389,1736077834865,-500.0,8.219e-05,2]
[347711390,1736077834875,-500.0,8.219e-05,2]
[347711391,1736077834885,-617.4,8.219e-05,2]
[347711392,1736077834895,-500.0,8.219e-05,2]
[347711393,1736077834905,-500.0,8.219e-05,2]
[347711394,1736077834915,-500.0,8.219e-05,2]
[347711395,1736077834924,-500.0,8.219e-05,2]
[347711396,1736077834934,-890.36,8.219e-05,2]
[347711397,1736077834944,-500.0,8.219e-05,2]
[347711398,1736077834954,-500.0,8.219e-05,2]
[347711399,1736077834963,-500.0,8.219e-05,2]
[347711400,1736077834976,-500.0,8.219e-05,2]
[347711401,1736077834987,-500.0,8.219e-05,2]
[347711402,1736077834998,-897.02,8.219e-05,2]
[347711403,1736077835007,-500.0,8.219e-05,2]
[347711404,1736077835017,-500.0,8.219e-05,2]
[347711405,1736077835027,-500.0,8.219e-05,2]
[347711406,1736077835041,-500.0,8.219e-05,2]
[347711407,1736077835050,-1373.72,8.219e-05,2]
[347711408,1736077835060,-500.0,8.219e-05,2]
[347711409,1736077835070,-514.55,8.219e-05,2]
[347711410,1736077835079,-500.0,8.219e-05,2]
[347711411,1736077835088,-713.57,8.219e-05,2]
[347711412,1736077835098,-606.82,8.219e-05,2]
[347711413,1736077835108,-500.0,8.219e-05,2]
[347711414,1736077835118,-500.0,8.219e-05,2]
[347711415,1736077835129,-500.0,8.219e-05,2]
[347711416,1736077835139,-500.0,8.219e-05,2]
[347711417,1736077835150,-500.0,8.219e-05,2]
[347711418,1736077835161,-500.0,8.219e-05,2]
[347711419,1736077835170,-500.0,8.219e-05,2]
[347711420,1736077835180,-500.0,8.219e-05,2]
[347711421,1736077835189,-500.0,8.219e-05,2]
[347711422,1736077835198,-605.11,8.219e-05,2]
[347711423,1736077835208,-757.44,8.219e-05,2]
[347711424,1736077835218,-500.0,8.219e-05,2]
[347711425,1736077835227,-500.0,8.219e-05,2]
[347711426,1736077835237,-500.0,8.219e-05,2]
[347711427,1736077835246,-1184.81,8.219e-05,2]
[347711428,1736077835257,-704.31,8.219e-05,2]
[347711429,1736077835266,-500.0,8.219e-05,2]
[347711430,1736077835277,-500.0,8.219e-05,2]
[347711431,1736077835287,-566.35,8.219e-05,2]
[347711432,1736077835297,-500.0,8.219e-05,2]
[347711433,1736077835308,-500.0,8.219e-05,2]
[347711434,1736077835318,-500.0,8.219e-05,2]
[347711435,1736077835327,-500.0,8.219e-05,2]
[347711436,1736077835336,-500.0,8.219e-05,2]
[347711437,1736077835345,-500.0,8.219e-05,2]
[347711438,1736077835355,-500.0,8.219e-05,2]
[347711439,1736077835364,-500.0,8.219e-05,2]
[347711440,1736077835373,-500.0,8.219e-05,2]
[347711441,1736077835384,-500.0,8.219e-05,2]
[347711442,1736077835393,-341.68671568,8.219e-05,2]
[347711443,1736077836115,-380.80328432,8.219e-05,2]
[347711444,1736077836124,-500.0,8.219e-05,2]
[347711445,1736077836133,-500.0,8.219e-05,2]
[347711446,1736077836142,-500.0,8.219e-05,2]
[347711447,1736077836151,-500.0,8.219e-05,2]
[347711448,1736077836160,-500.0,8.219e-05,2]
[347711449,1736077836169,-1641.6,8.219e-05,2]
[347711450,1736077836177,-758.18,8.219e-05,2]
[347711451,1736077836187,-564.09,8.219e-05,2]
[347711452,1736077836196,-500.0,8.219e-05,2]
[347711453,1736077836207,-2326.73,8.219e-05,2]
[347711454,1736077836216,-500.0,8.219e-05,2]
[347711455,1736077836225,-500.0,8.219e-05,2]
[347711456,1736077836235,-500.0,8.219e-05,2]
[347711457,1736077836244,-874.81,8.219e-05,2]
[347711458,1736077836254,-500.0,8.219e-05,2]
[347711459,1736077836266,-1289.57,8.219e-05,2]
[347711460,1736077836275,-1135.34,8.219e-05,2]
[347711461,1736077836285,-500.0,8.219e-05,2]
[347711462,1736077836296,-500.0,8.219e-05,2]
[347711463,1736077836306,-500.0,8.219e-05,2]
[347711464,1736077836315,-603.7,8.219e-05,2]
[347711465,1736077836325,-500.0,8.219e-05,2]
[347711466,1736077836335,-500.0,8.219e-05,2]
[347711467,1736077836343,-500.0,8.219e-05,2]
[347711468,1736077836354,-500.0,8.219e-05,2]
[347711469,1736077836365,-916.01,8.219e-05,2]
[347711470,1736077836376,-500.0,8.219e-05,2]
[347711471,1736077836387,-583.76,8.219e-05,2]
[347711472,1736077836398,-500.0,8.219e-05,2]
[347711473,1736077836407,-536.26,8.219e-05,2]
[347711474,1736077836417,-500.0,8.219e-05,2]
[347711475,1736077836426,-551.11,8.219e-05,2]
[347711476,1736077836439,-1685.45,8.219e-05,2]
[347711477,1736077836449,-1340.17,8.219e-05,2]
[347711478,1736077836459,-500.0,8.219e-05,2]
[347711479,1736077836470,-2464.65,8.219e-05,2]
[347711480,1736077836481,-582.22,8.219e-05,2]
[347711481,1736077836491,-900.6,8.219e-05,2]
[347711482,1736077836501,-1329.92,8.219e-05,2]
[347711483,1736077836510,-500.0,8.219e-05,2]
[347711484,1736077836519,-786.78,8.219e-05,2]
[347711485,1736077836528,-500.0,8.219e-05,2]
[347711486,1736077836538,-743.02,8.219e-05,2]
[347711487,1736077836548,-1147.49,8.219e-05,2]
[347711488,1736077836557,-690.8,8.219e-05,2]
[347711489,1736077836566,-500.0,8.219e-05,2]
[347711490,1736077836577,-500.0,8.219e-05,2]
[347711491,1736077836586,-597.29,8.219e-05,2]
[347711492,1736077836597,-527.65,8.219e-05,2]
[347711493,1736077836606,-500.0,8.219e-05,2]
[347711494,1736077836616,-657.19,8.219e-05,2]
[347711495,1736077836625,-500.0,8.219e-05,2]
[347711496,1736077836635,-500.0,8.219e-05,2]
[347711497,1736077836645,-1630.28,8.219e-05,2]
[347711498,1736077836655,-713.19,8.219e-05,2]
[347711499,1736077836664,-500.0,8.219e-05,2]
[347711500,1736077836673,-500.0,8.219e-05,2]
[347711501,1736077836682,-500.0,8.219e-05,2]
[347711502,1736077836691,-500.0,8.219e-05,2]
[347711503,1736077836701,-865.01,8.219e-05,2]
[347711504,1736077836711,-500.0,8.219e-05,2]
[347711505,1736077836720,-500.0,8.219e-05,2]
[347711506,1736077836729,-560.06,8.219e-05,2]
[347711507,1736077836739,-500.0,8.219e-05,2]
[347711508,1736077836748,-269.28533118,8.219e-05,2]
[347711509,1736077836758,-558.47,8.219e-05,2]
[347711510,1736077836768,-500.0,8.219e-05,2]
[347711511,1736077836778,-656.48,8.219e-05,2]
[347711512,1736077836787,-500.0,8.219e-05,2]
[347711513,1736077836797,-500.0,8.219e-05,2]
[347711514,1736077836806,-500.0,8.219e-05,2]
[347711515,1736077836815,-799.98,8.219e-05,2]
[347711516,1736077836824,-500.0,8.219e-05,2]
[347711517,1736077836834,-1370.84,8.219e-05,2]
[347711518,1736077836843,-500.0,8.219e-05,2]
[347711519,1736077836852,-500.0,8.219e-05,2]
[347711520,1736077836862,-500.0,8.219e-05,2]
[347711521,1736077836871,-500.0,8.219e-05,2]
[347711522,1736077836880,-500.0,8.219e-05,2]
[347711523,1736077836890,-1174.05,8.219e-05,2]
[347711524,1736077836899,-720.23,8.219e-05,2]
[347711525,1736077836908,-514.29,8.219e-05,2]
[347711526,1736077836917,-535.83,8.219e-05,2]
[347711527,1736077836927,-500.0,8.219e-05,2]
[347711528,1736077836936,-500.0,8.219e-05,2]
[347711529,1736077836945,-1100.99,8.219e-05,2]
[347711530,1736077836955,-500.0,8.219e-05,2]
[347711531,1736077836964,-642.31192734,8.219e-05,2]
[347711532,1736077836975,-500.0,8.219e-05,2]
[347711533,1736077836984,-500.0,8.219e-05,2]
[347711534,1736077836993,-500.13568842,8.219e-05,2]
[347711535,1736077837002,-500.0,8.219e-05,2]
[347711536,1736077837012,-742.07,8.219e-05,2]
[347711537,1736077837021,-846.77,8.219e-05,2]
[347711538,1736077837031,-500.0,8.219e-05,2]
[347711539,1736077837043,-500.0,8.219e-05,2]
[347711540,1736077837054,-500.0,8.219e-05,2]
[347711541,1736077837065,-500.0,8.219e-05,2]
[347711542,1736077837074,-1559.95,8.219e-05,2]
[347711543,1736077837083,-500.0,8.219e-05,2]
[347711544,1736077837093,-500.0,8.219e-05,2]
[347711545,1736077837102,-788.73,8.219e-05,2]
[347711546,1736077837111,-500.0,8.219e-05,2]
[347711547,1736077837120,-500.0,8.219e-05,2]
[347711548,1736077837130,-1389.11,8.219e-05,2]
[347711549,1736077837140,-2013.48,8.219e-05,2]
[347711550,1736077837149,-500.0,8.219e-05,2]
[347711551,1736077837160,-500.0,8.219e-05,2]
[347711552,1736077837169,-500.0,8.219e-05,2]
[347711553,1736077837181,-2906.9,8.219e-05,2]
[347711554,1736077837190,-500.0,8.219e-05,2]
[347711555,1736077837199,-500.0,8.219e-05,2]
[347711556,1736077837208,-500.0,8.219e-05,2]
[347711557,1736077837217,-500.0,8.219e-05,2]
[347711558,1736077837226,-500.0,8.219e-05,2]
[347711559,1736077837236,-1498.5,8.219e-05,2]
[347711560,1736077837245,-699.23,8.219e-05,2]
[347711561,1736077837254,-1506.83,8.219e-05,2]
[347711562,1736077837263,-770.93,8.219e-05,2]
[347711563,1736077837272,-500.0,8.219e-05,2]
[347711564,1736077837282,-1218.28,8.219e-05,2]
[347711565,1736077837291,-500.0,8.219e-05,2]
[347711566,1736077837300,-500.0,8.219e-05,2]
[347711567,1736077837309,-500.0,8.219e-05,2]
[347711568,1736077837319,-1089.33,8.219e-05,2]
[347711569,1736077837328,-500.0,8.219e-05,2]
[347711570,1736077837339,-500.0,8.219e-05,2]
[347711571,1736077837349,-500.0,8.219e-05,2]
[347711572,1736077837359,-500.0,8.219e-05,2]
[347711573,1736077837368,-820.66,8.219e-05,2]
[347711574,1736077837378,-500.0,8.219e-05,2]
[347711575,1736077837387,-248.54039732,8.219e-05,2]
[347711576,1736077837397,-632.38,8.219e-05,2]
[347711577,1736077837408,-978.19,8.219e-05,2]
[347711578,1736077837417,-500.0,8.219e-05,2]
[347711579,1736077837427,-503.4,8.219e-05,2]
[347711580,1736077837437,-686.96,8.219e-05,2]
[347711581,1736077837446,-500.0,8.219e-05,2]
[347711582,1736077837457,-500.0,8.219e-05,2]
[347711583,1736077837467,-500.0,8.219e-05,2]
[347711584,1736077837478,-500.0,8.219e-05,2]
[347711585,1736077837487,-890.17,8.219e-05,2]
[347711586,1736077837498,-500.0,8.219e-05,2]
[347711587,1736077837507,-500.0,8.219e-05,2]
[347711588,1736077837516,-744.13,8.219e-05,2]
[347711589,1736077837526,-500.0,8.219e-05,2]
[347711590,1736077837536,-500.0,8.219e-05,2]
[347711591,1736077837545,-500.0,8.219e-05,2]
[347711592,1736077837555,-2315.0,8.219e-05,2]
[347711593,1736077837563,-500.0,8.219e-05,2]
[347711594,1736077837572,-546.21,8.219e-05,2]
[347711595,1736077837582,-500.0,8.219e-05,2]
[347711596,1736077837591,-930.54,8.219e-05,2]
[347711597,1736077837600,-721.43,8.219e-05,2]
[347711598,1736077837610,-500.0,8.219e-05,2]
[347711599,1736077837620,-500.0,8.219e-05,2]
[347711600,1736077837629,-500.0,8.219e-05,2]
[347711601,1736077837639,-1252.67,8.219e-05,2]
[347711602,1736077837648,-500.0,8.219e-05,2]
[347711603,1736077837658,-500.0,8.219e-05,2]
[347711604,1736077837667,-500.0,8.219e-05,2]
[347711605,1736077837676,-2913.28,8.219e-05,2]
[347711606,1736077837685,-500.0,8.219e-05,2]
[347711607,1736077837694,-2177.81,8.219e-05,2]
[347711608,1736077837703,-774.57,8.219e-05,2]
[347711609,1736077837713,-897.91,8.219e-05,2]
[347711610,1736077837722,-585.74,8.219e-05,2]
[347711611,1736077837731,-500.0,8.219e-05,2]
[347711612,1736077837741,-500.0,8.219e-05,2]
[347711613,1736077837750,-511.93,8.219e-05,2]
[347711614,1736077837759,-500.0,8.219e-05,2]
[347711615,1736077837768,-500.0,8.219e-05,2]
[347711616,1736077837777,-500.0,8.219e-05,2]
[347711617,1736077837787,-2171.65,8.219e-05,2]
[347711618,1736077837796,-500.0,8.219e-05,2]
[347711619,1736077837805,-547.33,8.219e-05,2]
[347711620,1736077837814,-500.0,8.219e-05,2]
[347711621,1736077837823,-2317.89,8.219e-05,2]
[347711622,1736077837832,-500.0,8.219e-05,2]
[347711623,1736077837842,-500.0,8.219e-05,2]
[347711624,1736077837851,-867.55,8.219e-05,2]
[347711625,1736077837860,-500.0,8.219e-05,2]
[347711626,1736077837869,-527.01,8.219e-05,2]
[347711627,1736077837879,-500.0,8.219e-05,2]
[347711628,1736077837889,-9999.99,8.219e-05,2]
[347711629,1736077837898,-803.4,8.219e-05,2]
[347711630,1736077837908,-500.0,8.219e-05,2]
[347711631,1736077837918,-500.0,8.219e-05,2]
[347711632,1736077837927,-1302.69,8.219e-05,2]
[347711633,1736077837936,-1086.66,8.219e-05,2]
[347711634,1736077837946,-749.15,8.219e-05,2]
[347711635,1736077837955,-1986.45,8.219e-05,2]
[347711636,1736077837965,-565.13,8.219e-05,2]
[347711637,1736077837974,-856.06,8.219e-05,2]
[347711638,1736077837984,-2363.84,8.219e-05,2]
[347711640,1736077837993,-623.49,8.219e-05,2]
[347711642,1736077838003,-764.85,8.219e-05,2]
[347711643,1736077838013,-500.0,8.219e-05,2]
[347711645,1736077838022,-500.0,8.219e-05,2]
[347711647,1736077838031,-727.71,8.219e-05,2]
[347711648,1736077838041,-500.0,8.219e-05,2]
[347711649,1736077838051,-500.0,8.219e-05,2]
[347711650,1736077838060,-1852.11,8.219e-05,2]
[347711651,1736077838069,-584.32,8.219e-05,2]
[347711652,1736077838079,-500.0,8.219e-05,2]
[347711653,1736077838088,-640.46,8.219e-05,2]
[347711654,1736077838097,-500.0,8.219e-05,2]
[347711655,1736077838105,-1550.64,8.219e-05,2]
[347711656,1736077838115,-500.0,8.219e-05,2]
[347711657,1736077838125,-500.0,8.219e-05,2]
[347711658,1736077838134,-1783.14,8.219e-05,2]
[347711659,1736077838144,-641.41,8.219e-05,2]
[347711660,1736077838153,-531.36,8.219e-05,2]
[347711661,1736077838163,-1213.26,8.219e-05,2]
[347711662,1736077838173,-500.0,8.219e-05,2]
[347711663,1736077838182,-500.0,8.219e-05,2]
[347711664,1736077838191,-500.0,8.219e-05,2]
[347711665,1736077838199,-500.0,8.219e-05,2]
[347711666,1736077838207,-500.0,8.219e-05,2]
[347711667,1736077838216,-500.0,8.219e-05,2]
[347711668,1736077838226,-1908.11,8.219e-05,2]
[347711669,1736077838236,-500.0,8.219e-05,2]
[347711670,1736077838245,-3065.63,8.219e-05,2]
[347711671,1736077838255,-500.0,8.219e-05,2]
[347711672,1736077838264,-500.0,8.219e-05,2]
[347711673,1736077838273,-641.67,8.219e-05,2]
[347711674,1736077838283,-3640.86,8.219e-05,2]
[347711675,1736077838294,-500.0,8.219e-05,2]